Cogmind - Beta 17 @@@ ROGUE MODE // 2026.07.04 @ 21:32:31 Player: kite Result: Destroyed by D-63 Destroyer with Heavy Rocket Launcher Performance ------------- Evolutions (5) 2500 Regions Visited (25) 5000 Robots Destroyed (330) 1650 Value Destroyed (17591) 17591 Prototype IDs (41) 820 Alien Tech Used (0) 0 Bonus (9408) 9408 TOTAL SCORE: 36969 Bonus ------- High Alert Combat Kills 5443 Follower Combat Kills 2005 Entered Garrisons 1000 Aligned with FarCom 300 Acquired ECA 300 Met Warlord at Base 500 MAIN.C Attacked Warlord 500 Friendly Fire -640 Cogmind --------- Core Integrity 0/1000 Matter 279/300 Energy 191/300 System Corruption 0% Temperature Cool (2) Movement Walking (180) Ox1 Location -4/Proximity Caves Parts ------- > --- POWER (1) -------- Angular Momentum Engine > --- PROPULSION (6) --- Myomer Leg Experimental Myomer Leg > --- UTILITY (6) ------ High-capacity Storage Unit Spectral Analyzer Improved Melee Analysis Suite Layered Light Armor Plating Point Defense System Point Defense System > --- WEAPON (4) ------- Gravity Flail Gravity Flail Ionic Axe Kinetic Spear > --- INVENTORY (20) --- Vortex Chain Reactor Experimental Matter Compressor (0) Advanced Transmission Jammer Experimental Reaction Control System Experimental Phase Shifter Layered Light Armor Plating Experimental Focal Shield Thermal Barrier Experimental EM Shield Hacking Suite Improved System Shield Ghost Barrier Dynamic Insulation System Advanced Micro-nuke Launcher Gravity Flail Gravity Flail Ionic Axe Ionic Axe Lance Peak State ------------ > --- POWER ------------ Angular Momentum Engine > --- PROPULSION ------- Carbon-fiber Leg Flexi-carbon Leg Flexi-carbon Leg Flexi-carbon Leg Myomer Leg Experimental Myomer Leg > --- UTILITY ---------- High-capacity Storage Unit Spectral Analyzer Improved Melee Analysis Suite Experimental Reaction Control System Experimental Focal Shield Thermal Barrier > --- WEAPON ----------- Gravity Flail Gravity Flail Ionic Axe Kinetic Spear > --- INVENTORY -------- Vortex Chain Reactor Wheel Wheel Experimental Matter Compressor Experimental Phase Shifter Layered Light Armor Plating Layered Light Armor Plating Experimental EM Shield Point Defense System Point Defense System Hacking Suite Ghost Barrier Dynamic Insulation System Advanced Micro-nuke Launcher Gravity Flail Gravity Flail Ionic Axe Ionic Axe Lance [Rating: 125] Favorites ----------- Power Light Nuclear Core Engine Angular Momentum Engine Power Core Light Nuclear Core Reactor Light Particle Reactor Propulsion Light Treads Treads Light Treads Leg Flexi-carbon Leg Wheel Wheel Hover Unit Antigrav System Utility Large Storage Unit Device Actuator Array Storage Large Storage Unit Processor Improved Melee Analysis Suite Hackware Hacking Suite Protection Light Armor Plating Weapon Flak Gun Energy Gun Beam Rifle Ballistic Gun Flak Gun Launcher Missile Launcher Impact Weapon Impact Mace Slashing Weapon Blade Saw Piercing Weapon Kinetic Spear Special Melee Weapon Improved Datajack Build | -11 -10 -10 -10 -9 -8 -8 -8 -8 -7 -7 -7 -7 -7 -6 -6 -6 -6 -6 -6 -6 -5 -5 -5 -5 -4 ------- Run | Yrd Mat Min Exi Min Mat Gar Mat Gar Fac Gar Fac Gar Fac Fac Was Fac Gar Fac Low Low Fac Upp Upp War Pro Slots Evolved 10 | . . . . . 4 . . . 2 . . . . 2 . . . . . . 2 . . . . Power . | . . . . . . . . . . . . . . . . . . . . . . . . . . Propulsion 4 | . . . . . 1 . . . 1 . . . . 1 . . . . . . 1 . . . . Utility 4 | . . . . . 1 . . . 1 . . . . 1 . . . . . . 1 . . . . Weapon 2 | . . . . . 2 . . . . . . . . . . . . . . . . . . . . Parts Attached 235 | 6 1 2 1 1 8 5 10 9 13 25 21 17 6 . . . 18 4 7 2 53 1 11 10 4 Power 22 | 1 . 1 . . . 2 1 . 2 3 1 2 2 . . . 1 . . 1 3 . 2 . . Engine 10 | 1 . 1 . . . 1 1 . 1 . 1 . 1 . . . . . . . 2 . 1 . . Core 10 | . . . . . . 1 . . 1 3 . 2 1 . . . . . . . 1 . 1 . . Reactor 2 | . . . . . . . . . . . . . . . . . 1 . . 1 . . . . . Propulsion 80 | 2 . . . . 1 . 4 4 6 6 6 8 3 . . . 12 . 1 . 18 . 7 2 . Treads 20 | 2 . . . . 1 . 4 4 . . . 1 . . . . 4 . 1 . 1 . 2 . . Leg 47 | . . . . . . . . . 6 6 6 7 3 . . . 8 . . . 5 . 4 2 . Wheel 12 | . . . . . . . . . . . . . . . . . . . . . 11 . 1 . . Hover 1 | . . . . . . . . . . . . . . . . . . . . . 1 . . . . Flight . | . . . . . . . . . . . . . . . . . . . . . . . . . . Utility 72 | 1 1 1 . . 1 1 4 1 3 6 5 1 1 . . . 3 3 5 1 19 1 2 8 4 Device 35 | . . 1 . . 1 . 1 . 2 2 2 1 . . . . 1 2 4 . 10 . 1 3 4 Storage 8 | 1 1 . . . . . . . . . 1 . 1 . . . . 1 . . 1 1 . 1 . Processor 7 | . . . . . . . 1 . . 2 1 . . . . . . . . . 2 . . 1 . Hackware 4 | . . . . . . . . . . . 1 . . . . . . . . . 3 . . . . Protection 18 | . . . . . . 1 2 1 1 2 . . . . . . 2 . 1 1 3 . 1 3 . Artifact . | . . . . . . . . . . . . . . . . . . . . . . . . . . Weapon 61 | 2 . . 1 1 6 2 1 4 2 10 9 6 . . . . 2 1 1 . 13 . . . . Energy Gun 4 | . . . 1 . . . . 1 1 . . . . . . . 1 . . . . . . . . Energy Cannon . | . . . . . . . . . . . . . . . . . . . . . . . . . . Ballistic Gun 23 | 2 . . . 1 6 . . 1 1 10 2 . . . . . . . . . . . . . . Ballistic Cannon . | . . . . . . . . . . . . . . . . . . . . . . . . . . Launcher 8 | . . . . . . 2 1 2 . . 1 . . . . . . . . . 2 . . . . Special Weapon . | . . . . . . . . . . . . . . . . . . . . . . . . . . Impact Weapon 10 | . . . . . . . . . . . 2 4 . . . . . . . . 4 . . . . Slashing Weapon 13 | . . . . . . . . . . . 3 2 . . . . 1 1 1 . 5 . . . . Piercing Weapon 2 | . . . . . . . . . . . . . . . . . . . . . 2 . . . . Special Melee Weapon 1 | . . . . . . . . . . . 1 . . . . . . . . . . . . . . Unidentified Prototypes 18 | . . . . . . . 2 . 1 . 2 . 1 . . . . . . . 7 . . 5 . Corrupted Parts 2 | . . . . . . . . . . . . . . . . . 1 . . . . . . 1 . System Corruption 7 | . . . . . . . . . . . . . . . . . 4 . . . . . . 3 . Parts Lost 84 | . . 2 . . . 1 1 6 1 14 1 16 1 . 1 . 2 . 1 2 24 . 7 . 4 Power 10 | . . 1 . . . 1 . . . 3 . 2 . . . . . . . . 2 . 1 . . Propulsion 37 | . . . . . . . . . . 3 . 8 . . . . 2 . . . 16 . 4 . 4 Utility 14 | . . . . . . . 1 1 1 2 . 1 . . . . . . 1 2 3 . 2 . . Weapon 23 | . . 1 . . . . . 5 . 6 1 5 1 . 1 . . . . . 3 . . . . Highest Loss Streak 11 | . . 2 . . . 1 1 2 1 4 1 6 1 . 1 . 1 . 1 2 11 . 3 . 4 To Critical Strikes 1 | . . . . . . . . . . . . . . . . . . . . . 1 . . . . Average Backups 14 | 2 7 9 9 13 13 15 14 14 14 13 14 11 14 17 7 4 10 14 15 16 17 18 18 18 19 Power . | . . . . . . . . . . . . . . 3 2 2 1 1 1 . . 1 . . 1 Propulsion 4 | 1 5 7 8 8 7 5 7 7 6 3 2 2 4 4 . . 2 4 5 5 1 3 2 2 . Utility 5 | . . . . 1 1 3 3 5 6 7 5 2 4 7 2 2 3 6 5 5 8 7 8 8 11 Weapon 3 | . 1 2 1 4 5 5 3 2 1 3 6 4 2 2 1 . . 1 2 3 6 7 7 6 6 Tool/Special . | . . . . . . . . . . . . . . . . . . . . . . . . . . Unused Backups 71 | . 4 . . 1 1 3 6 . 2 3 7 3 3 . 8 . 7 . 2 1 8 . . 3 9 Power 7 | . 1 . . . . . . . . . 1 . 1 . 1 . 2 . . . . . . . 1 Propulsion 22 | . 2 . . 1 . 2 3 . . . 1 3 2 . 2 . 3 . . 1 . . . . 2 Utility 30 | . 1 . . . 1 . 3 . 2 1 2 . . . 5 . 2 . 2 . 6 . . 2 3 Weapon 11 | . . . . . . 1 . . . 2 3 . . . . . . . . . 1 . . 1 3 Tool/Special 1 | . . . . . . . . . . . . . . . . . . . . . 1 . . . . Average Slot Usage (%) 95 | . 85 86 99 100 95 99 100 95 91 99 99 93 99 93 87 93 95 86 91 81 90 93 91 99 99 Engine 3 | . 14 12 14 14 9 1 3 9 3 . 6 2 4 . . . . . . . 1 5 4 5 5 Core 2 | . . . . . . 7 5 . 3 6 . 4 2 6 6 6 4 . . . . . . . . Treads 12 | . 28 28 28 28 27 27 27 27 13 . . 1 . . . . 3 26 26 21 9 . 2 7 . Leg 14 | . . . . . . . . . 12 29 30 27 30 33 33 33 28 . . . 7 . 10 26 34 Wheel 2 | . . . . . . . . . . . . . . . . . . . . . 11 35 18 . . Device 9 | . . 6 14 14 15 12 8 9 11 4 7 13 15 13 13 13 12 6 12 8 9 5 6 13 9 Storage 7 | . 14 14 14 14 9 9 9 9 7 7 7 7 7 6 3 6 6 6 6 6 5 5 5 5 5 Processor 4 | . . . . . . . . . . 10 7 7 7 6 6 6 6 6 6 6 6 5 5 6 11 Protection 4 | . . . . . . 5 9 5 6 7 1 . . . . . 4 6 5 4 3 10 9 7 6 Energy Gun 1 | . . . 13 14 4 . . 1 8 . . . . . . . 2 . . . . . . . . Ballistic Gun 13 | . 28 25 14 14 29 29 36 26 21 27 16 . . . . . . . . . . . . . . Launcher 1 | . . . . . . 6 . 7 . 2 . . . . . . . . . . . . . . . Impact Weapon 7 | . . . . . . . . . . . 3 14 26 23 17 20 19 17 13 13 7 10 10 11 11 Slashing Weapon 3 | . . . . . . . . . . . 10 12 3 . . . 3 8 13 13 11 5 5 5 5 Peak Build Rating 125 | 6 7 10 10 11 28 30 36 36 43 58 56 53 58 58 56 56 84 79 87 87 111 78 102 119 125 Average Rating 54 | 4 6 7 9 10 20 26 32 30 32 50 50 45 52 57 52 56 67 77 83 78 85 77 86 104 117 On Entrance 48 | . 6 6 9 10 11 28 25 36 26 43 46 51 44 57 56 56 56 74 79 87 77 69 78 100 119 Avg Prop Armor Cover (%) 7 | . . . . . . . . . . 4 5 10 6 5 9 11 8 . . . 9 . 7 10 11 Naked Turns . | . . . . . . . . . . . . . . . . . . . . . . . . . . Heaviest Build 97 | 13 33 29 27 27 42 46 54 55 60 67 52 46 68 65 63 44 65 87 87 82 89 89 97 83 79 Greatest Support 168 | 40 40 40 40 40 60 60 60 60 69 87 72 72 75 85 85 60 138 138 148 148 168 66 80 125 90 Greatest Overweight (x) 18 | 3 . . . . . . . . . 1 1 1 1 1 1 . 2 . . . 18 1 4 1 1 Average Overweight (x) . | . . . . . . . . . . . . . . . . . . . . . . 1 1 . . Largest Inventory Capacity 20 | 8 15 15 15 15 15 15 15 15 15 15 15 15 20 20 20 15 15 20 20 20 20 20 20 20 20 Average Capacity 16 | 7 8 15 15 15 15 15 15 15 15 15 15 15 17 20 12 15 15 18 20 20 20 20 20 20 20 Most Carried 20 | 4 8 10 10 15 15 15 15 15 15 15 15 15 20 17 17 7 15 19 20 20 20 19 20 20 20 Average Carried 14 | 2 7 9 9 13 13 14 14 14 14 13 14 11 14 17 7 7 13 17 18 19 18 18 18 18 19 Final Capacity 20 | 8 15 15 15 15 15 15 15 15 15 15 15 15 20 20 15 15 15 20 20 20 20 20 20 20 20 Final Carried 20 | 4 8 10 10 15 15 15 15 15 15 15 15 9 18 17 7 7 15 19 20 19 20 19 17 20 20 Class Distribution -------------------- 26% | Scavenger-Gladiator 20% | Gladiator 15% | Skirmisher 14% | Scavenger-Skirmisher 10% | Tank 8% | Mutant Dominant Class ---------------- Mutant | -10/Materials Mutant | -10/Mines Mutant | -10/Exiles Skirmisher | -9/Mines Skirmisher | -8/Materials Tank | -8/Garrison Tank | -8/Materials Skirmisher | -8/Garrison Scavenger-Skirmisher | -7/Factory Scavenger-Skirmisher | -7/Garrison Scavenger-Skirmisher | -7/Factory Gladiator | -7/Garrison Gladiator | -7/Factory Scavenger-Gladiator | -6/Factory Gladiator | -6/Waste Gladiator | -6/Factory Scavenger-Gladiator | -6/Garrison Gladiator | -6/Factory Gladiator | -6/Lower Caves Gladiator | -6/Lower Caves Scavenger-Gladiator | -5/Factory Scavenger-Gladiator | -5/Upper Caves Scavenger-Gladiator | -5/Upper Caves Scavenger-Gladiator | -5/Warlord Scavenger-Gladiator | -4/Proximity Caves Resources | -11 -10 -10 -10 -9 -8 -8 -8 -8 -7 -7 -7 -7 -7 -6 -6 -6 -6 -6 -6 -6 -5 -5 -5 -5 -4 ----------- Run | Yrd Mat Min Exi Min Mat Gar Mat Gar Fac Gar Fac Gar Fac Fac Was Fac Gar Fac Low Low Fac Upp Upp War Pro Matter Collected 9407 | . 213 265 10 15 . 1287 909 1426 83 1909 334 554 78 44 30 . 220 110 132 20 953 67 355 30 363 Remotely . | . . . . . . . . . . . . . . . . . . . . . . . . . . Salvage Created 11880 | . 259 139 . 58 . 498 897 850 398 1508 491 1034 551 58 . . 1218 368 319 197 2192 . 789 . 56 Parts 552 | . 17 13 . 11 . 53 58 47 24 88 17 33 8 . . . 33 10 4 3 112 . 16 . 5 Haulers Intercepted 10 | . 1 . . . . . 1 . . . 2 . . . . . . 1 . . 5 . . . . Recyclers Shooed 2 | . . . . . . . . . 1 . . . . . . . . . . . 1 . . . . Parts Field Recycled . | . . . . . . . . . . . . . . . . . . . . . . . . . . Retrieved Matter . | . . . . . . . . . . . . . . . . . . . . . . . . . . Parts Self-Destructed 32 | . . . . . . . . . . . . . . . . . . . 5 3 . . 19 . 5 Prevented 7 | . . . . . . . . . . . . . . . . . . . 2 3 . . 2 . . Parts Restored . | . . . . . . . . . . . . . . . . . . . . . . . . . . Kills | -11 -10 -10 -10 -9 -8 -8 -8 -8 -7 -7 -7 -7 -7 -6 -6 -6 -6 -6 -6 -6 -5 -5 -5 -5 -4 ------- Run | Yrd Mat Min Exi Min Mat Gar Mat Gar Fac Gar Fac Gar Fac Fac Was Fac Gar Fac Low Low Fac Upp Upp War Pro Combat Hostiles Destroyed 270 | . 5 6 . 4 . 32 13 30 8 39 6 34 11 . . . 20 4 5 5 22 . 23 . 3 Melee 53 | . . . . . . . . . . . . 12 5 . . . 12 3 1 2 12 . 3 . 3 Guns 120 | . 5 6 . 4 . 17 13 26 6 39 4 . . . . . . . . . . . . . . AOE 56 | . . . . . . 15 . 4 2 . 2 11 . . . . . . . . 9 . 13 . . Classes Destroyed 22 | . 4 2 . . . 2 5 1 . . 1 3 . 1 . . . . 2 . . . . . 1 Worker 11 | . 1 1 . . . . 2 . 2 . . . . . . . . . . . 5 . . . . Builder 17 | . . . . . . . 4 . 2 . 1 . . 1 . . . 1 . . 8 . . . . Tunneler 2 | . . . . . . . 1 . . . . . . . . . . . . . 1 . . . . Hauler 10 | . 1 . . . . . 1 . . . 2 . . . . . . 1 . . 5 . . . . Recycler 5 | . . . . . . . 2 . 1 . . . . . . . . . . . 2 . . . . Mechanic 4 | . . . . . . . . . . . . . . 1 . . . . . . 3 . . . . Operator 1 | . 1 . . . . . . . . . . . . . . . . . . . . . . . . Drone 2 | . . . . . . . . . . . . . . . . . . . . . . . . . 2 Watcher 7 | . . . . . . . 2 . 1 . . . 2 . . . . . . . 2 . . . . Swarmer 89 | . . 3 . 4 . 22 . 7 . 22 . 11 2 . . . 2 . 4 2 1 . 9 . . Grunt 103 | . 5 1 . . . 7 6 15 6 11 5 15 6 . . . 11 2 . . 3 . 10 . . Brawler 2 | . . . . . . . . . . . . 1 . . . . . . . . . . 1 . . Duelist 6 | . . . . . . . . . . . 2 . . . . . . . . 2 . . 2 . . Protector 2 | . . . . . . . . . . . . 1 . . . . . . . . 1 . . . . Sentry 30 | . . . . . . 2 5 6 . 4 . 2 2 . . . 5 . . 1 2 . 1 . . Demolisher 1 | . . . . . . . . . . . . 1 . . . . . . . . . . . . . Specialist 4 | . . . . . . . 2 . . . . . . . . . . . . . 2 . . . . Hunter 12 | . . . . . . 1 . . 1 2 . . . . . . 1 1 . . 6 . . . . Programmer 17 | . . . . . . . . 2 1 . . 3 1 . . . 1 1 . . 7 . . . 1 Behemoth 1 | . . . . . . . . . . . . . . . . . . . 1 . . . . . . Samaritan 2 | . . . . . . . . . . . . . . . . . . . 2 . . . . . . Assembled 2 | . . 2 . . . . . . . . . . . . . . . . . . . . . . . Wasp 1 | . . . . . . . . . . . . . . . . . 1 . . . . . . . . Thug 1 | . . . . . . . . . . . . . . . . . . 1 . . . . . . . Guerrilla 1 | . . . . . . . . . . . 1 . . . . . . . . . . . . . . Wizard 1 | . . . . . . . . . . . . . . . . . . . . . 1 . . . . Best Kill Streak 13 | . 2 3 . 4 . 7 5 5 10 6 4 4 3 1 . . 6 2 4 3 13 . 5 . 1 Combat Bots Only 9 | . 2 3 . 4 . 7 5 5 3 6 3 4 3 . . . 6 2 4 3 9 . 5 . 1 Max Kills in Single Turn 5 | . 1 1 . 2 . 4 2 2 4 3 5 4 1 1 . . 1 1 1 1 4 . 4 . 1 Gunslinging 1 | . . . . 1 . 1 1 . . 1 . . . . . . . . . . . . . . . Exploded 4 | . . . . . . 4 . 2 2 . 2 4 . . . . . . . . 3 . 4 . . Melee 1 | . . . . . . . . . . . . 1 1 . . . 1 1 1 1 1 . 1 . 1 Uniques/NPCs Destroyed . | . . . . . . . . . . . . . . . . . . . . . . . . . . Combat | -11 -10 -10 -10 -9 -8 -8 -8 -8 -7 -7 -7 -7 -7 -6 -6 -6 -6 -6 -6 -6 -5 -5 -5 -5 -4 -------- Run | Yrd Mat Min Exi Min Mat Gar Mat Gar Fac Gar Fac Gar Fac Fac Was Fac Gar Fac Low Low Fac Upp Upp War Pro Hostile Shots Fired 1631 | . 21 21 . 7 . 63 27 111 47 293 27 231 49 6 1 . 144 26 63 50 262 . 98 64 20 Missed 510 | . 7 5 . 3 . 23 4 33 14 80 10 84 18 2 . . 41 8 17 14 99 . 21 23 4 Hits 1121 | . 14 16 . 4 . 40 23 78 33 213 17 147 31 4 1 . 103 18 46 36 163 . 77 41 16 Melee 12 | . . . . . . . . . . . 1 . . . 1 . . . . 6 . . 4 . . Projectile 1109 | . 14 16 . 4 . 40 23 78 33 213 16 147 31 4 . . 103 18 46 30 163 . 73 41 16 AOE 22 | . . . . . . . . . . . . 10 . . . . . . . . . . . . 12 Critical Strikes 34 | . . . . . . 4 1 5 1 2 . 1 . 1 1 . 1 . 1 3 9 . 3 1 . Part Disruptions 1 | . . . . . . . . . . . . . . . . . . 1 . . . . . . . Actively Blocked 1 | . . . . . . . . . . . . . . . . . . 1 . . . . . . . Damage Taken 17730 | . 184 178 . 36 . 420 380 1200 598 2303 451 2145 347 74 54 . 1663 377 771 557 3331 . 1563 495 603 Core 2145 | . 30 53 . . . 24 23 75 18 150 76 327 23 18 . . 234 . 49 23 668 . 186 84 84 Absorbed by Shields 339 | . . . . . . 150 95 . . . . . . . . . . . . . . . 79 15 . Redirected to Shielding 101 | . . . . . . . . . . . . . . . . . . . . . 63 . 38 . . Ignored by Resistances 1087 | . . . . . . . . . 4 369 . . . . . . 99 . 67 . 232 . . 218 98 Regen/Repaired (Parts) 1044 | . . . . . . . . . . . . . . . 154 . 609 . . . . . . 281 . Core Remaining (%) 63 | 100 . . . 66 . . . 77 . . . . 15 . . . . . . 61 . . . . . Volleys Fired 406 | 1 26 25 . 5 . 54 39 68 23 103 15 14 . . . . 15 . . . 8 . 8 . 2 Largest 4 | 2 2 2 . 2 . 4 4 4 4 4 4 1 . . . . 1 . . . 1 . 1 . 1 Hottest 164 | 40 40 40 . 70 . 112 112 112 164 134 102 36 . . . . 69 . . . 39 . 30 . 30 Shots Fired 1091 | 2 52 45 . 10 . 128 156 171 86 334 60 14 . . . . 15 . . . 8 . 8 . 2 Gun 1002 | 2 52 45 . 10 . 102 156 152 86 322 60 . . . . . 15 . . . . . . . . Cannon . | . . . . . . . . . . . . . . . . . . . . . . . . . . Launcher 89 | . . . . . . 26 . 19 . 12 . 14 . . . . . . . . 8 . 8 . 2 Special . | . . . . . . . . . . . . . . . . . . . . . . . . . . Kinetic 950 | 2 52 45 . 5 . 102 156 151 64 313 60 . . . . . . . . . . . . . . Thermal 52 | . . . . 5 . . . 1 22 9 . . . . . . 15 . . . . . . . . Explosive 89 | . . . . . . 26 . 19 . 12 . 14 . . . . . . . . 8 . 8 . 2 Electromagnetic . | . . . . . . . . . . . . . . . . . . . . . . . . . . Robot Hit Streak 9 | . 5 5 . 2 . 7 9 9 6 9 5 4 . . . . . . . . 1 . 1 . . Robot Miss Streak 11 | . 5 3 . 2 . 9 9 8 5 11 11 1 . . . . . . . . 1 . 5 . . Penetration Max 1 | . . . . . . . . . . 1 1 . . . . . . . . . . . . . . Secondary Targets 25 | . 1 1 . 1 . 4 1 2 1 13 1 . . . . . . . . . . . . . . Max Gunslinging Chain 2 | . 1 1 . 1 . 1 1 1 1 2 1 . . . . . . . . . . . . . . Shots Hit Robots 954 | . 30 27 . 4 . 67 103 121 44 174 33 63 32 3 . . 55 18 23 17 100 . 33 . 7 Core Hits 684 | . 14 16 . 5 . 98 103 153 23 98 23 33 3 . . . 15 2 2 3 65 . 25 . 3 Critical Kills 12 | . 2 . . . . . . . . 1 . 3 . . . . 5 1 . . . . . . . Critical Parts Destroyed 64 | . 1 . . . . . . . . 4 . 9 11 . . . 16 3 4 4 7 . 5 . . Critical Strikes 100 | . 3 . . . . . . . 1 6 . 19 11 . . . 23 4 6 4 15 . 8 . . Burn 2 | . . . . . . . . . 1 1 . . . . . . . . . . . . . . . Destroy 8 | . 3 . . . . . . . . 5 . . . . . . . . . . . . . . . Smash 74 | . . . . . . . . . . . . 14 11 . . . 22 4 4 4 7 . 8 . . Sever 15 | . . . . . . . . . . . . 5 . . . . 1 . 2 . 7 . . . . Impale 1 | . . . . . . . . . . . . . . . . . . . . . 1 . . . . Melee Attacks 595 | . . . . . . . . . . . 10 107 56 8 14 . 90 42 34 23 149 . 46 2 14 Impact 385 | . . . . . . . . . . . 6 79 51 7 14 . 88 37 20 17 30 . 30 2 4 Slashing 173 | . . . . . . . . . . . 3 28 5 . . . 2 5 14 6 102 . 5 . 3 Piercing 35 | . . . . . . . . . . . . . . . . . . . . . 17 . 11 . 7 Sneak Attacks 48 | . . . . . . . . . . . 3 5 3 3 . . . 4 3 . 27 . . . . Combat Hostiles 8 | . . . . . . . . . . . . 5 3 . . . . . . . . . . . . Follow-up Attacks 124 | . . . . . . . . . . . 1 19 14 . . . 17 7 15 6 29 . 12 . 4 Damage Inflicted 35465 | . 310 248 . 51 . 1891 1566 2547 1574 3562 1347 3344 1670 163 . . 2889 1168 1084 718 7694 . 3336 . 303 Guns 9950 | . 310 248 . 51 . 1032 1526 2149 645 3382 607 . . . . . . . . . . . . . . Cannons . | . . . . . . . . . . . . . . . . . . . . . . . . . . Explosions 7547 | . . . . . . 859 33 398 929 159 554 887 . . . . 53 . . . 2029 . 1646 . . Melee 17919 | . . . . . . . . . . . 179 2457 1656 163 . . 2836 1168 1084 718 5665 . 1690 . 303 Ramming 49 | . . . . . . . 7 . . 21 7 . 14 . . . . . . . . . . . . Kinetic 9712 | . 310 248 . 26 . 1032 1526 2149 491 3323 607 . . . . . . . . . . . . . . Thermal 271 | . . . . 25 . . 33 . 154 59 . . . . . . . . . . . . . . . Explosive 7514 | . . . . . . 859 . 398 929 159 554 887 . . . . 53 . . . 2029 . 1646 . . Electromagnetic . | . . . . . . . . . . . . . . . . . . . . . . . . . . Impact 11373 | . . . . . . . . . . . 141 2209 1602 163 . . 2817 1168 689 608 709 . 1189 . 78 Slashing 5645 | . . . . . . . . . . . 38 248 54 . . . 19 . 395 110 4527 . 206 . 48 Piercing 901 | . . . . . . . . . . . . . . . . . . . . . 429 . 295 . 177 Highest Corruption 13 | . . . . . . . 4 6 . . . 5 6 . . . 4 4 4 4 13 6 12 12 . Average Corruption 5 | . . . . . . . 2 5 . . . 4 5 . . . 4 4 4 4 10 6 9 8 . Corruption Purged 7 | . . . . . . . . . . . . . . . . . . . . . 7 . . . . Corruption Blocked . | . . . . . . . . . . . . . . . . . . . . . . . . . . Effects 199 | . . . . . . . 20 45 . . . 11 15 . . . 4 9 22 2 35 3 31 2 . Message Errors 47 | . . . . . . . 5 8 . . . 3 5 . . . 3 3 10 . 7 1 2 . . Matter Fused 59 | . . . . . . . 6 11 . . . 4 4 . . . . 1 6 1 8 1 16 1 . Heat Flow Errors 23 | . . . . . . . 2 7 . . . 1 2 . . . . 1 2 . 6 1 1 . . Energy Discharges 28 | . . . . . . . 4 6 . . . 2 1 . . . . 1 2 1 7 . 4 . . Parts Rejected 4 | . . . . . . . 1 1 . . . . . . . . . . . . 1 . 1 . . Parts Fused 1 | . . . . . . . . . . . . . . . . . . . . . . . 1 . . Data Loss (minor) 21 | . . . . . . . 2 6 . . . 1 2 . . . . 1 1 . 3 . 4 1 . Data Loss (major) 10 | . . . . . . . . 2 . . . . 1 . . . 1 2 1 . 1 . 2 . . Misfires 3 | . . . . . . . . 3 . . . . . . . . . . . . . . . . . Misdirections 2 | . . . . . . . . . . . . . . . . . . . . . 2 . . . . Weapon Failures 1 | . . . . . . . . 1 . . . . . . . . . . . . . . . . . Overload Shots . | . . . . . . . . . . . . . . . . . . . . . . . . . . Overflow Damage 5491 | . . . . . . 32 . 78 133 15 111 595 758 83 . . 881 469 435 195 1301 . 392 . 13 Projectiles . | . . . . . . . . . . . . . . . . . . . . . . . . . . Explosions 487 | . . . . . . 32 . 78 133 15 110 35 . . . . . . . . 60 . 24 . . Melee 5004 | . . . . . . . . . . . 1 560 758 83 . . 881 469 435 195 1241 . 368 . 13 Knockbacks 42 | . . . . . . . . . . . . 6 6 1 . . 13 4 2 5 1 . 4 . . Impact 40 | . . . . . . . . . . . . 6 6 1 . . 12 3 2 5 1 . 4 . . Kinetic . | . . . . . . . . . . . . . . . . . . . . . . . . . . Secondary 2 | . . . . . . . . . . . . . . . . . 1 1 . . . . . . . Self-Inflicted Damage 756 | . . . . . . 67 84 120 100 101 109 113 . . . . . . . . 62 . . . . Shots 20 | . . . . . . 3 1 4 2 3 2 4 . . . . . . . . 1 . . . . Rammed 1 | . . . . . . . 1 . . . . . . . . . . . . . . . . . . Targets Rammed 12 | . . . . . . . 1 . . 7 1 . 3 . . . . . . . . . . . . Kicked 11 | . . . . . . . . . . 7 1 . 3 . . . . . . . . . . . . Crushed . | . . . . . . . . . . . . . . . . . . . . . . . . . . Highest Temperature 386 | . 30 20 . 50 . 180 255 386 221 332 142 101 270 . . . 42 116 302 . 262 60 157 325 . Average Temperature 91 | . 12 11 . 23 . 51 81 111 77 113 63 42 112 . . . 17 58 120 . 85 33 89 164 . Received Heat Transfer 3930 | . 99 94 . . . 149 99 468 252 528 108 339 72 54 . . 405 54 346 48 441 . 374 . . Effects 8 | . . . . . . . . 3 3 2 . . . . . . . . . . . . . . . Shutdowns 1 | . . . . . . . . 1 . . . . . . . . . . . . . . . . . Interference 7 | . . . . . . . . 2 3 2 . . . . . . . . . . . . . . . Siege Activations . | . . . . . . . . . . . . . . . . . . . . . . . . . . Martial Activations . | . . . . . . . . . . . . . . . . . . . . . . . . . . Shielding Activations . | . . . . . . . . . . . . . . . . . . . . . . . . . . Robots Disrupted . | . . . . . . . . . . . . . . . . . . . . . . . . . . Combat Hostiles . | . . . . . . . . . . . . . . . . . . . . . . . . . . Robots Corrupted 50 | . . . . . . . . . . . 1 11 8 1 . . 10 2 6 3 1 . 7 . . Combat Hostiles 41 | . . . . . . . . . . . . 11 6 . . . 8 1 4 3 1 . 7 . . Parts Fried 45 | . . . . . . . . . . . 2 10 9 4 . . 7 4 2 . 1 . 6 . . Impact Corruptions 145 | . . . . . . . . . . . 1 21 26 3 . . 27 11 21 11 10 . 14 . . Robots Melted . | . . . . . . . . . . . . . . . . . . . . . . . . . . Combat Hostiles . | . . . . . . . . . . . . . . . . . . . . . . . . . . Parts Melted 2 | . . . . 1 . . . . 1 . . . . . . . . . . . . . . . . Heat Transferred 790 | . . . . 74 . . 50 . 444 222 . . . . . . . . . . . . . . . Parts Sabotaged . | . . . . . . . . . . . . . . . . . . . . . . . . . . Parts Stolen . | . . . . . . . . . . . . . . . . . . . . . . . . . . Parts Stripped . | . . . . . . . . . . . . . . . . . . . . . . . . . . Power Chain Reactions . | . . . . . . . . . . . . . . . . . . . . . . . . . . Alert | -11 -10 -10 -10 -9 -8 -8 -8 -8 -7 -7 -7 -7 -7 -6 -6 -6 -6 -6 -6 -6 -5 -5 -5 -5 -4 ------- Run | Yrd Mat Min Exi Min Mat Gar Mat Gar Fac Gar Fac Gar Fac Fac Was Fac Gar Fac Low Low Fac Upp Upp War Pro Maximum Alert Level 5 | . . . . . . 4 3 5 4 5 5 5 4 2 . . 5 5 . . 2 . . . . Low Security (%) 16 | 100 100 100 . 100 100 6 . . . . . . . . 100 100 15 . . . 14 . . . . Level 1 6 | . . . . . . 7 . . . . . . . . . . 2 . . . 51 . . . . Level 2 17 | . . . . . . 6 97 21 . . . . . 100 . . 6 . . . 34 . . . . Level 3 11 | . . . . . . 39 2 10 88 12 . 3 24 . . . 2 . . . . . . . . Level 4 20 | . . . . . . 41 . 40 11 12 36 59 75 . . . 6 24 . . . . . . . Level 5 27 | . . . . . . . . 27 . 75 63 36 . . . . 68 75 . . . . . . . High Security . | . . . . . . . . . . . . . . . . . . . . . . . . . . Max Security . | . . . . . . . . . . . . . . . . . . . . . . . . . . Peak Influence 3055 | . 80 70 . 90 . 1366 713 1758 1265 3055 1726 2071 1202 567 148 18 2855 1735 . . 509 . . . . Initial 1603 | . . . . . . . 665 431 922 877 1603 1077 1087 567 146 . 2 1498 . . 401 . . . . Average 1078 | . 18 10 . 23 . 922 614 1203 885 2058 1621 1575 1142 497 58 4 1742 1627 . . 338 . . . . Influence Increases 13981 | . 150 161 . 90 . 1376 559 1387 655 2318 320 1154 384 12 29 32 3013 453 125 125 966 . 632 . 40 Destroy 0b10 Robot/C 6360 | . 100 120 . 80 . 640 300 620 160 940 120 660 220 . . . 1060 240 100 100 420 . 460 . 20 Destroy 0b10 Robot/NC 335 | . 15 5 . . . . 70 . 30 5 15 5 10 10 . . 10 10 5 . 135 . . . 10 Destroy Leader 776 | . 22 30 . 10 . 50 98 40 42 60 24 50 64 . . . 60 42 20 10 104 . 40 . 10 Allied During Kill 1347 | . . 6 . . . . 7 3 1 76 44 . . . . . 1079 104 . . . . 27 . . Successful Hack 200 | . 13 . . . . 7 24 21 4 . 47 . 21 . . 32 14 . . . 17 . . . . Disable Machine 675 | . . . . . . 30 30 45 315 30 30 45 15 . . . 60 15 . . 60 . . . . Anti-Garrison Action 2400 | . . . . . . 450 . 400 . 850 . 150 . . . . 550 . . . . . . . . Destroy Structure 1108 | . . . . . . 199 30 198 103 147 40 79 9 2 29 . 150 12 . . 110 . . . . Partial Spotted 30 | . . . . . . . . . . 30 . . . . . . . . . . . . . . . Lose Combat Pursuer 750 | . . . . . . . . 60 . 180 . 165 45 . . . 30 30 . 15 120 . 105 . . Influence Decreases 13981 | . 150 161 . 90 . 10 1261 293 1160 516 1836 622 1296 752 448 28 162 1707 1019 195 1387 151 505 192 40 Entered New Map 8518 | . . . . . . . 701 233 836 376 1452 462 984 592 273 . 2 1357 593 135 236 81 13 192 . Time Decay 4019 | . 150 147 . 90 . . 530 . 294 . 334 . 302 160 125 28 . 270 416 40 601 70 422 . 40 Lost Part 794 | . . 14 . . . 10 10 60 10 140 10 160 10 . 10 . 20 . 10 20 240 . 70 . . Lost Ally 350 | . . . . . . . 20 . 20 . 40 . . . 40 . 140 80 . . 10 . . . . Purge Threat 300 | . . . . . . . . . . . . . . . . . . . . . 300 . . . . Squads Dispatched 29 | . 1 . . . 1 . 2 . 4 . 3 . 3 1 . . . 5 . . 8 . 1 . . Investigation 8 | . . . . . 1 . . . 1 . 1 . 1 1 . . . 2 . . 1 . . . . Extermination 8 | . . . . . . . . . 1 . 1 . 1 . . . . 1 . . 4 . . . . Reinforcement 8 | . 1 . . . . . 1 . 2 . 1 . . . . . . 1 . . 2 . . . . Assault 4 | . . . . . . . . . . . . . 1 . . . . 1 . . 1 . 1 . . Garrison 1 | . . . . . . . 1 . . . . . . . . . . . . . . . . . . Intercept . | . . . . . . . . . . . . . . . . . . . . . . . . . . Searches Triggered . | . . . . . . . . . . . . . . . . . . . . . . . . . . Construction Impeded 4 | . . . . . . . . . 1 . 1 . . . . . . 1 . . 1 . . . . Haulers Reinforced 1 | . . . . . . . . . 1 . . . . . . . . . . . . . . . . Active Scanning Responses . | . . . . . . . . . . . . . . . . . . . . . . . . . . Cargo Convoy Interrupts 1 | . . . . . . . . . . . . . . . . . . . . . 1 . . . . Stealth | -11 -10 -10 -10 -9 -8 -8 -8 -8 -7 -7 -7 -7 -7 -6 -6 -6 -6 -6 -6 -6 -5 -5 -5 -5 -4 --------- Run | Yrd Mat Min Exi Min Mat Gar Mat Gar Fac Gar Fac Gar Fac Fac Was Fac Gar Fac Low Low Fac Upp Upp War Pro Distress Signals 26 | . . . . . . . 5 . 1 2 . . 1 . . . . . . . 1 . . . 16 Communications Jammed 23 | . . . . . . . . . . . . . 12 . . . . . . . 11 . . . . Distress Signals 21 | . . . . . . . . . . . . . 12 . . . . . . . 9 . . . . Times Spotted 405 | . 9 8 . 4 2 26 23 30 9 50 9 38 16 3 8 . 49 12 5 7 48 . 32 9 8 Peak Tracking Total 10 | . 2 2 . 4 4 4 3 8 3 6 3 7 3 3 5 . 4 6 4 3 10 . 7 9 2 Tactical Retreats 32 | . . . . . . . . 1 . 7 . 6 2 . 1 . 2 1 . 1 7 . 4 . . Traps | -11 -10 -10 -10 -9 -8 -8 -8 -8 -7 -7 -7 -7 -7 -6 -6 -6 -6 -6 -6 -6 -5 -5 -5 -5 -4 ------- Run | Yrd Mat Min Exi Min Mat Gar Mat Gar Fac Gar Fac Gar Fac Fac Was Fac Gar Fac Low Low Fac Upp Upp War Pro Traps Triggered 25 | . . . . . . 2 2 . . 7 . . . 1 . . 4 1 . . 7 . . 1 . Indirectly . | . . . . . . . . . . . . . . . . . . . . . . . . . . Trap Hack Attempts . | . . . . . . . . . . . . . . . . . . . . . . . . . . Triggered . | . . . . . . . . . . . . . . . . . . . . . . . . . . Disarmed . | . . . . . . . . . . . . . . . . . . . . . . . . . . Reprogrammed . | . . . . . . . . . . . . . . . . . . . . . . . . . . Reused . | . . . . . . . . . . . . . . . . . . . . . . . . . . Traps Extracted . | . . . . . . . . . . . . . . . . . . . . . . . . . . Installed . | . . . . . . . . . . . . . . . . . . . . . . . . . . Triggered . | . . . . . . . . . . . . . . . . . . . . . . . . . . Machines | -11 -10 -10 -10 -9 -8 -8 -8 -8 -7 -7 -7 -7 -7 -6 -6 -6 -6 -6 -6 -6 -5 -5 -5 -5 -4 ---------- Run | Yrd Mat Min Exi Min Mat Gar Mat Gar Fac Gar Fac Gar Fac Fac Was Fac Gar Fac Low Low Fac Upp Upp War Pro Machines Disabled 81 | . . . . . . 10 2 10 21 9 2 4 1 . . . 16 1 . . 4 . . 1 . Max in Single Turn 6 | . . . . . . 2 2 1 6 1 2 1 1 . . . 2 . . . 1 . . 1 . Garrison Relay 24 | . . . . . . 5 . 5 . 5 . 1 . . . . 8 . . . . . . . . Phase Generator 4 | . . . . . . 1 . 1 . 1 . . . . . . 1 . . . . . . . . Machines Repaired . | . . . . . . . . . . . . . . . . . . . . . . . . . . Machines Dismantled . | . . . . . . . . . . . . . . . . . . . . . . . . . . Machines Sabotaged . | . . . . . . . . . . . . . . . . . . . . . . . . . . Overloaded Fab Kills . | . . . . . . . . . . . . . . . . . . . . . . . . . . Hacking | -11 -10 -10 -10 -9 -8 -8 -8 -8 -7 -7 -7 -7 -7 -6 -6 -6 -6 -6 -6 -6 -5 -5 -5 -5 -4 --------- Run | Yrd Mat Min Exi Min Mat Gar Mat Gar Fac Gar Fac Gar Fac Fac Was Fac Gar Fac Low Low Fac Upp Upp War Pro Machines Accessed 55 | . 3 . 2 . 1 3 8 3 3 4 5 1 3 2 . 2 3 2 . . 7 . 2 1 . Terminals 32 | . 3 . . . . 3 6 3 . 4 3 1 1 . . 1 3 . . . 4 . . . . Fabricators 6 | . . . . . . . . . 2 . 1 . 1 . . . . 2 . . . . . . . Repair Stations 5 | . . . . . . . 1 . . . . . 1 2 . . . . . . 1 . . . . Recycling Units . | . . . . . . . . . . . . . . . . . . . . . . . . . . Scanalyzers 1 | . . . . . . . . . . . . . . . . . . . . . 1 . . . . Garrison Access 6 | . . . . . 1 . 1 . 1 . 1 . . . . 1 . . . . 1 . . . . Total Hacks 124 | . 7 . 5 . 3 8 18 5 5 9 7 1 5 6 . 2 5 6 . . 26 . 5 1 . Successful 55 | . 3 . 5 . 1 2 7 2 2 1 4 . 3 2 . 2 2 3 . . 10 . 5 1 . Failed 69 | . 4 . . . 2 6 11 3 3 8 3 1 2 4 . . 3 3 . . 16 . . . . Catastrophic 13 | . 1 . . . . 1 1 . 1 2 2 . 1 1 . . . . . . 3 . . . . Database Lockouts . | . . . . . . . . . . . . . . . . . . . . . . . . . . Manual 39 | . 4 . 1 . . . 13 . . . 2 . . 2 . . . . . . 17 . . . . Terminals 72 | . 7 . . . . 8 14 5 . 9 4 1 2 . . 1 5 . . . 16 . . . . Fabricators 14 | . . . . . . . . . 4 . 2 . 2 . . . . 6 . . . . . . . Repair Stations 13 | . . . . . . . 3 . . . . . 1 6 . . . . . . 3 . . . . Recycling Units . | . . . . . . . . . . . . . . . . . . . . . . . . . . Scanalyzers 6 | . . . . . . . . . . . . . . . . . . . . . 6 . . . . Garrison Access 8 | . . . . . 3 . 1 . 1 . 1 . . . . 1 . . . . 1 . . . . Terminal Hacks 26 | . 2 . 5 . . 2 . 2 . 1 1 . 1 . . 1 2 . . . 3 . 5 1 . Record 8 | . . . 4 . . . . . . . . . . . . . . . . . . . 4 . . Part Schematic 1 | . 1 . . . . . . . . . . . . . . . . . . . . . . . . Open Door 5 | . . . . . . 1 . 1 . 1 . . . . . . . . . . . . 1 1 . Level Access Points 1 | . . . . . . . . . . . . . 1 . . . . . . . . . . . . Branch Access Points 2 | . 1 . . . . . . . . . . . . . . . . . . . 1 . . . . Emergency Access Points 2 | . . . . . . 1 . 1 . . . . . . . . . . . . . . . . . Garrison Index 2 | . . . . . . . . . . . 1 . . . . 1 . . . . . . . . . Unreport Threat 2 | . . . . . . . . . . . . . . . . . . . . . 2 . . . . Garrison Registry 1 | . . . . . . . . . . . . . . . . . 1 . . . . . . . . Security Stations 1 | . . . . . . . . . . . . . . . . . 1 . . . . . . . . Proto ID Catalog 1 | . . . 1 . . . . . . . . . . . . . . . . . . . . . . Fabricator Hacks 8 | . . . . . . . . . 1 . 2 . 2 . . . . 3 . . . . . . . Load Schematic 5 | . . . . . . . . . 1 . 1 . 1 . . . . 2 . . . . . . . Build 3 | . . . . . . . . . . . 1 . 1 . . . . 1 . . . . . . . Repair Station Hacks 3 | . . . . . . . 1 . . . . . . 2 . . . . . . . . . . . Scan Component 3 | . . . . . . . 1 . . . . . . 2 . . . . . . . . . . . Recycling Unit Hacks . | . . . . . . . . . . . . . . . . . . . . . . . . . . Scanalyzer 5 | . . . . . . . . . . . . . . . . . . . . . 5 . . . . Insert Component 3 | . . . . . . . . . . . . . . . . . . . . . 3 . . . . Analyze 1 | . . . . . . . . . . . . . . . . . . . . . 1 . . . . Retrieve Study 1 | . . . . . . . . . . . . . . . . . . . . . 1 . . . . Garrison Access Hacks 6 | . . . . . 1 . 1 . 1 . 1 . . . . 1 . . . . 1 . . . . Unlock Access 6 | . . . . . 1 . 1 . 1 . 1 . . . . 1 . . . . 1 . . . . Unauthorized Hacks 7 | . 1 . . . . . 5 . . . . . . . . . . . . . 1 . . . . Terminals 7 | . 1 . . . . . 5 . . . . . . . . . . . . . 1 . . . . Botnet 7 | . 1 . . . . . 5 . . . . . . . . . . . . . 1 . . . . Fabricators . | . . . . . . . . . . . . . . . . . . . . . . . . . . Repair Stations . | . . . . . . . . . . . . . . . . . . . . . . . . . . Recycling Units . | . . . . . . . . . . . . . . . . . . . . . . . . . . Scanalyzers . | . . . . . . . . . . . . . . . . . . . . . . . . . . Garrison Access . | . . . . . . . . . . . . . . . . . . . . . . . . . . Data Cores Recovered . | . . . . . . . . . . . . . . . . . . . . . . . . . . Used . | . . . . . . . . . . . . . . . . . . . . . . . . . . Hacking Detections 40 | . 1 . . . 1 2 7 2 2 3 5 1 2 2 . 1 3 2 . . 6 . . . . Full Trace Events 11 | . . . . . 1 1 1 . 1 1 1 . 1 1 . . . 2 . . 1 . . . . Feedback Events . | . . . . . . . . . . . . . . . . . . . . . . . . . . Feedback Blocked . | . . . . . . . . . . . . . . . . . . . . . . . . . . Robot Schematics Acquired . | . . . . . . . . . . . . . . . . . . . . . . . . . . Robots Built . | . . . . . . . . . . . . . . . . . . . . . . . . . . Authchips . | . . . . . . . . . . . . . . . . . . . . . . . . . . Time . | . . . . . . . . . . . . . . . . . . . . . . . . . . Total Robot Build Rating . | . . . . . . . . . . . . . . . . . . . . . . . . . . Part Schematics Acquired 2 | . 1 . . . . . . . . . . . . . . . . . . . 1 . . . . Parts Built 3 | . . . . . . . . . . . 1 . 1 . . . . 1 . . . . . . . Authchips . | . . . . . . . . . . . . . . . . . . . . . . . . . . Time 101 | . . . . . . . . . . . 25 . 51 . . . . 25 . . . . . . . Total Part Build Rating 3 | . . . . . . . . . . . 1 . 1 . . . . 1 . . . . . . . Part Studies Acquired 1 | . . . . . . . . . . . . . . . . . . . . . 1 . . . . Parts Repaired . | . . . . . . . . . . . . . . . . . . . . . . . . . . Time . | . . . . . . . . . . . . . . . . . . . . . . . . . . Parts Recycled . | . . . . . . . . . . . . . . . . . . . . . . . . . . Recycled Matter . | . . . . . . . . . . . . . . . . . . . . . . . . . . Retrieved Matter . | . . . . . . . . . . . . . . . . . . . . . . . . . . Retrieved Components . | . . . . . . . . . . . . . . . . . . . . . . . . . . Parts Scanalyzed 1 | . . . . . . . . . . . . . . . . . . . . . 1 . . . . Part Schematics Acquired 1 | . . . . . . . . . . . . . . . . . . . . . 1 . . . . Parts Damaged 1 | . . . . . . . . . . . . . . . . . . . . . 1 . . . . Bothacking | -11 -10 -10 -10 -9 -8 -8 -8 -8 -7 -7 -7 -7 -7 -6 -6 -6 -6 -6 -6 -6 -5 -5 -5 -5 -4 ------------ Run | Yrd Mat Min Exi Min Mat Gar Mat Gar Fac Gar Fac Gar Fac Fac Was Fac Gar Fac Low Low Fac Upp Upp War Pro Used RIF Installer . | . . . . . . . . . . . . . . . . . . . . . . . . . . Robots Hacked 1 | . . . . . . . . . . . . . . 1 . . . . . . . . . . . Non-combat 1 | . . . . . . . . . . . . . . 1 . . . . . . . . . . . Combat . | . . . . . . . . . . . . . . . . . . . . . . . . . . Robot Hacks Applied 1 | . . . . . . . . . . . . . . 1 . . . . . . . . . . . find_chute 1 | . . . . . . . . . . . . . . 1 . . . . . . . . . . . Relay Couplers Released 101 | . . . . . . 21 . 21 . 22 . 3 . . . . 34 . . . . . . . . Machine Destruction 101 | . . . . . . 21 . 21 . 22 . 3 . . . . 34 . . . . . . . . Fabnet Peak Effective % . | . . . . . . . . . . . . . . . . . . . . . . . . . . Robots Rewired 9 | . . . . . . . . . . 5 . . . . . . 2 . . . . . 2 . . Allies Hacked 2 | . . . . . . . . . . . 1 . . . . . 1 . . . . . . . . Hacks Repelled . | . . . . . . . . . . . . . . . . . . . . . . . . . . Allies | -11 -10 -10 -10 -9 -8 -8 -8 -8 -7 -7 -7 -7 -7 -6 -6 -6 -6 -6 -6 -6 -5 -5 -5 -5 -4 -------- Run | Yrd Mat Min Exi Min Mat Gar Mat Gar Fac Gar Fac Gar Fac Fac Was Fac Gar Fac Low Low Fac Upp Upp War Pro Total Allies 33 | . . 2 . . . 1 . 1 . 5 . . . . 19 . 2 . . . . . 3 . . Largest Group 19 | . . 2 2 . . 1 1 1 1 5 5 . . . 19 14 14 6 . . . . 2 2 . Highest-Rated Group 702 | . . 38 38 . . 39 39 31 31 149 146 . . . 702 577 577 232 . . . . 167 59 . Highest-Rated Ally 167 | . . 31 31 . . 39 39 31 31 39 39 . . . 50 50 51 51 . . . . 167 30 . Initial Warlord ECA Mod 49 | . . . . . . . 10 10 21 21 31 31 36 35 35 35 35 49 49 49 48 47 47 47 46 Warlord Squad Rendezvous 1 | . . . . . . . . . . . . . . . . . . . . . 1 . . . . Geek 1 | . . . . . . . . . . . . . . . . . . . . . 1 . . . . Total Orders 2 | . . . . . . . . . . . . . . . . . . . . . 1 . . 1 . STAY 1 | . . . . . . . . . . . . . . . . . . . . . . . . 1 . EXPLORE 1 | . . . . . . . . . . . . . . . . . . . . . 1 . . . . Ally Attacks 301 | . . 4 . . . . 18 5 8 41 8 . . . 61 . 118 36 . . . . 2 . . Total Damage 10900 | . . 62 . . . . 217 64 149 748 322 . . . 3322 . 5023 921 . . . . 72 . . Kills 67 | . . 2 . . . . 4 1 . 9 . . . . 9 . 34 8 . . . . . . . Allies Corrupted 1 | . . . . . . . . . . . . . . . . . 1 . . . . . . . . Allies Melted . | . . . . . . . . . . . . . . . . . . . . . . . . . . Intel | -11 -10 -10 -10 -9 -8 -8 -8 -8 -7 -7 -7 -7 -7 -6 -6 -6 -6 -6 -6 -6 -5 -5 -5 -5 -4 ------- Run | Yrd Mat Min Exi Min Mat Gar Mat Gar Fac Gar Fac Gar Fac Fac Was Fac Gar Fac Low Low Fac Upp Upp War Pro Active Infowar (turns) 7270 | . . 310 551 341 198 572 . . 362 99 . 211 670 326 347 99 433 5 . . 1685 . . 276 785 Optics 1061 | . . . . . . . . . . . . . . . . . . . . . . . . 276 785 Terrain 1972 | . . 310 551 341 198 572 . . . . . . . . . . . . . . . . . . . Structural 126 | . . . . . . . . . . . . . . . . . . . . . 126 . . . . Seismic 5 | . . . . . . . . . . . . . . . . . . 5 . . . . . . . Machine Analysis 735 | . . . . . . . . . . . . . . . . . . . . . 735 . . . . Jamming 4354 | . . . . . . . . . 362 99 . 211 670 326 347 99 433 . . . 1649 . . . 158 Robot Analysis Total . | . . . . . . . . . . . . . . . . . . . . . . . . . . Derelict Logs Recovered 7 | . . 1 . 1 . . . . . . . . . . . . . . 1 . . 1 2 . 1 Drone Launches 1 | . . . . . . . . . . . . . . . . . . . . . 1 . . . . Drone Recoveries . | . . . . . . . . . . . . . . . . . . . . . . . . . . Exploration | -11 -10 -10 -10 -9 -8 -8 -8 -8 -7 -7 -7 -7 -7 -6 -6 -6 -6 -6 -6 -6 -5 -5 -5 -5 -4 ------------- Run | Yrd Mat Min Exi Min Mat Gar Mat Gar Fac Gar Fac Gar Fac Fac Was Fac Gar Fac Low Low Fac Upp Upp War Pro Turns Passed 21881 | 87 488 686 551 341 198 1727 1483 1653 656 2529 741 1299 670 326 347 99 1487 583 1007 91 1931 157 1026 933 785 Spaces Moved 12212 | 45 206 347 344 201 111 963 789 876 337 1478 495 616 336 173 202 60 876 293 579 32 1118 154 571 603 407 Core 12 | 11 . . . . . . . . . . . . . . . . . . . . 1 . . . . Treads 5427 | 34 206 347 344 201 111 963 789 876 172 . . 2 . . . . 159 293 579 32 319 . . . . Legs 5781 | . . . . . . . . . 165 1478 495 614 336 173 202 60 717 . . . 309 . 222 603 407 Wheels 991 | . . . . . . . . . . . . . . . . . . . . . 488 154 349 . . Hover 1 | . . . . . . . . . . . . . . . . . . . . . 1 . . . . Flight . | . . . . . . . . . . . . . . . . . . . . . . . . . . Fastest Speed 50 | 50 160 160 160 160 160 160 160 163 127 122 120 120 120 122 122 123 122 158 155 158 88 98 98 107 105 Average Speed 144 | 159 160 160 160 160 160 160 162 163 145 135 120 133 125 164 132 123 130 158 157 158 124 98 132 144 164 Slowest Speed 950 | 200 160 160 160 160 160 160 163 163 163 195 190 240 190 192 192 123 260 158 158 158 950 98 385 182 180 Overloaded Moves . | . . . . . . . . . . . . . . . . . . . . . . . . . . Propulsion Burnouts . | . . . . . . . . . . . . . . . . . . . . . . . . . . Robots Hopped . | . . . . . . . . . . . . . . . . . . . . . . . . . . Potential Cave-ins 2 | . . . . . . . . . . . . . . . 2 . . . . . . . . . . Cave-ins Triggered . | . . . . . . . . . . . . . . . . . . . . . . . . . . Exploration Rate (%) 44 | 4 41 64 60 28 12 89 58 96 11 92 17 37 11 4 82 3 97 5 76 5 29 44 59 81 61 Regions Visited 25 Branch Regions 9 Pre-discovered Areas 6 | . . 2 1 . . . . . . . . . . . . . . . 2 . . . 1 . . Known Exits Taken 9 | . 1 . . . 1 . 1 . 1 . 1 . 1 . . 1 . . . . 1 . 1 . . Unknown Exits Taken 9 | 1 . 1 1 1 . . . . . . . . . . . . . 1 1 1 . 1 . 1 . Scrap Searched 12 | . . . . 2 . . . . . . . . . . . . . . 3 . . 1 1 . 5 Spaces Dug 99 | . . . . . . 7 . 10 . 11 5 12 9 2 9 . 6 8 1 . 15 . 2 . 2 Terrain Destroyed 1168 | . . . . . . 147 25 177 107 205 44 42 9 2 9 . 150 8 1 . 75 . 105 . 62 Melee 69 | . . . . . . . . . . . 5 10 9 2 9 . 6 8 1 . 15 . 2 . 2 Projectile 6 | . . . . . . . . . . 6 . . . . . . . . . . . . . . . AOE 1093 | . . . . . . 147 25 177 107 199 39 32 . . . . 144 . . . 60 . 103 . 60 Terrain Rammed . | . . . . . . . . . . . . . . . . . . . . . . . . . . Walls Destroyed . | . . . . . . . . . . . . . . . . . . . . . . . . . . Machines Disabled . | . . . . . . . . . . . . . . . . . . . . . . . . . . Actions | -11 -10 -10 -10 -9 -8 -8 -8 -8 -7 -7 -7 -7 -7 -6 -6 -6 -6 -6 -6 -6 -5 -5 -5 -5 -4 --------- Run | Yrd Mat Min Exi Min Mat Gar Mat Gar Fac Gar Fac Gar Fac Fac Was Fac Gar Fac Low Low Fac Upp Upp War Pro Total 15088 | 55 320 437 345 212 133 1054 905 995 453 1792 605 965 521 206 263 85 1103 363 646 52 1473 160 776 665 504 Wait 1151 | . 75 62 . . . 8 29 26 63 49 17 225 116 25 49 25 66 25 27 1 70 . 108 15 70 Move 12191 | 44 205 346 343 200 111 962 789 874 336 1477 495 615 335 173 201 60 875 292 578 31 1117 153 570 602 407 Hop . | . . . . . . . . . . . . . . . . . . . . . . . . . . Pick Up 198 | 4 8 2 1 5 7 6 13 6 7 15 17 8 14 . 1 . 16 7 7 2 36 1 3 10 2 Fast Attach 133 | 6 1 2 . . 4 2 6 2 4 8 8 7 1 . 1 . 10 2 4 . 41 2 12 10 . Attach 79 | . . . 1 . 4 . 1 5 5 9 4 11 1 1 2 . 1 . 3 3 21 2 4 1 . Detach 17 | . . . . . . . 1 . . . 1 . . . . . 3 . . 1 10 . . 1 . Swap 158 | . . . . 1 . 14 6 9 5 18 12 9 6 2 . . 14 5 2 . 29 . 7 5 14 Drop 228 | . 5 . . 1 7 8 20 5 10 18 28 5 9 . . . 24 7 8 1 41 2 8 19 2 Fire 406 | 1 26 25 . 5 . 54 39 68 23 103 15 14 . . . . 15 . . . 8 . 8 . 2 Melee 375 | . . . . . . . . . . . 7 71 31 5 9 . 55 25 17 13 100 . 33 2 7 Ram . | . . . . . . . . . . . . . . . . . . . . . . . . . . Kick 11 | . . . . . . . . . . 7 1 . 3 . . . . . . . . . . . . Crush 1 | . . . . . . . 1 . . . . . . . . . . . . . . . . . . Escape Stasis 22 | . . . . . . . . . . 16 . . 5 . . . 1 . . . . . . . . Rewire 118 | . . . . . . . . . . 72 . . . . . . 23 . . . . . 23 . . Trap . | . . . . . . . . . . . . . . . . . . . . . . . . . . Miscellaneous . | . . . . . . . . . . . . . . . . . . . . . . . . . . Route ------- -11/Scrapyard -10/Materials (discovered 4 exits: [*Mat x2] / *Min x2) -10/Mines (discovered 2 exits: *Exi / [*Sub]) -10/Exiles -9/Mines -8/Materials -8/Garrison (discovered 3 exits: *Mat x3) -8/Materials (discovered 4 exits: *Fac x2 / [*Sto] / Gar) -8/Garrison (discovered 3 exits: *Fac x3) -7/Factory -7/Garrison (discovered 4 exits: *Fac x4) -7/Factory (discovered 2 exits: *Fac / Gar) -7/Garrison -7/Factory (discovered 5 exits: *Fac x4 / [*Low]) -6/Factory -6/Waste -6/Factory -6/Garrison (discovered 3 exits: *Fac x3) -6/Factory -6/Lower Caves -6/Lower Caves -5/Factory (discovered 5 exits: *Upp x2 / *Ext x2 / Gar) -5/Upper Caves -5/Upper Caves (discovered 2 exits: *War / [*Fac]) -5/Warlord -4/Proximity Caves (discovered 1 exit: [*Fac]) History --------- Turn | Location | Event 21 | -11/Scrapyard | Discovered new exit (range 15) 88 | -11/Scrapyard | Entered Materials 305 | -10/Materials | Build established: Mutant 314 | -10/Materials | Discovered new exit (range 14) 442 | -10/Materials | Identified exit to Mines 510 | -10/Materials | Discovered new exit (range 10) 576 | -10/Materials | Entered Mines 652 | -10/Mines | Found a hidden stash of uninstalled traps 658 | -10/Mines | Discovered new exit (range 10) 759 | -10/Mines | Learned location of Storage (-8) 810 | -10/Mines | Assembled infested the area 1241 | -10/Mines | Deemed a non-threat by the Exiles lab entrance 1243 | -10/Mines | Discovered new exit (range 5) 1262 | -10/Mines | Entered Exiles 1262 | -10/Exiles | Accompanied by 2 allies 1292 | -10/Exiles | Led the pair of lost Derelicts to a safe place 1303 | -10/Exiles | Met 8R-AWN 1331 | -10/Exiles | Met EX-HEX 1374 | -10/Exiles | Met EX-BIN 1393 | -10/Exiles | Aligned with FarCom system 1395 | -10/Exiles | Given EX-Vault access code 1433 | -10/Exiles | Opened EX-Vault 1441 | -10/Exiles | Found Modified TNC 1474 | -10/Exiles | Warned to stay clear of 0b10 Research branches 1522 | -10/Exiles | Met EX-DEC 1677 | -10/Exiles | Discovered new exit (range 10) 1749 | -10/Exiles | Learned location of Zion (-6) 1813 | -10/Exiles | Left Exiles lab with Modified TNC 1813 | -10/Exiles | Entered Mines 1922 | -9/Mines | Received a Rocket Launcher from a helpful Derelict 2115 | -9/Mines | Build established: Skirmisher 2145 | -9/Mines | Discovered new exit (range 5) 2154 | -9/Mines | Entered Materials 2154 | -8/Materials | Evolved 4 slots: Propulsion x1, Utility x1, Weapon x2 2352 | -8/Materials | Identified exit to Garrison 2352 | -8/Materials | Entered Garrison 2366 | -8/Garrison | Triggered checkpoint 2430 | -8/Garrison | Triggered checkpoint 2457 | -8/Garrison | Garrison Relay disabled 2592 | -8/Garrison | Triggered checkpoint 2615 | -8/Garrison | Destroyed 7 combat bots 2616 | -8/Garrison | Triggered checkpoint 2635 | -8/Garrison | Triggered checkpoint 2682 | -8/Garrison | Triggered checkpoint 2740 | -8/Garrison | Garrison Relay disabled 2815 | -8/Garrison | Discovered new exit (range 10) 2848 | -8/Garrison | Triggered checkpoint 2898 | -8/Garrison | Triggered checkpoint 2919 | -8/Garrison | Garrison Relay disabled 3213 | -8/Garrison | Build established: Tank 3334 | -8/Garrison | Garrison Relay disabled 3370 | -8/Garrison | Phase Generator disabled 3428 | -8/Garrison | Discovered new exit (range 13) 3663 | -8/Garrison | Rescued a captive Derelict 3674 | -8/Garrison | Triggered checkpoint 3752 | -8/Garrison | Discovered new exit (range 14) 4079 | -8/Garrison | Entered Materials 4079 | -8/Materials | Accompanied by 1 ally 4568 | -8/Materials | Discovered new exit (range 10) 5363 | -8/Materials | Discovered new exit (range 6) 5461 | -8/Materials | Garrison activated, responded to threat 5552 | -8/Materials | Discovered new exit (range 12) 5562 | -8/Materials | Identified exit to Garrison 5562 | -8/Materials | Entered Garrison 5582 | -8/Garrison | Build established: Skirmisher 5626 | -8/Garrison | Triggered checkpoint 5652 | -8/Garrison | Garrison Relay disabled 5816 | -8/Garrison | Triggered checkpoint 5890 | -8/Garrison | Triggered checkpoint 5954 | -8/Garrison | Triggered checkpoint 6032 | -8/Garrison | Triggered checkpoint 6072 | -8/Garrison | Triggered checkpoint 6222 | -8/Garrison | Triggered checkpoint 6261 | -8/Garrison | Garrison Relay disabled 6318 | -8/Garrison | Discovered new exit (range 15) 6542 | -8/Garrison | Phase Generator disabled 6555 | -8/Garrison | Discovered new exit (range 11) 6558 | -8/Garrison | Triggered checkpoint 6721 | -8/Garrison | Rescued a captive Derelict 6755 | -8/Garrison | Garrison Relay disabled 6848 | -8/Garrison | Discovered new exit (range 14) 7034 | -8/Garrison | Build established: Scavenger-Skirmisher 7069 | -8/Garrison | Attempted to access garrison exit controls, blocked by remote lockdown 7215 | -8/Garrison | Entered Factory 7215 | -7/Factory | Accompanied by 1 ally 7215 | -7/Factory | Evolved 2 slots: Propulsion x1, Utility x1 7869 | -7/Factory | Identified exit to Garrison 7871 | -7/Factory | Entered Garrison 8031 | -7/Garrison | Triggered checkpoint 8063 | -7/Garrison | Garrison Relay disabled 8183 | -7/Garrison | Triggered checkpoint 8202 | -7/Garrison | Build established: Skirmisher 8209 | -7/Garrison | Triggered checkpoint 8273 | -7/Garrison | Triggered checkpoint 8430 | -7/Garrison | Discovered new exit (range 11) 8446 | -7/Garrison | Discovered new exit (range 6) 8512 | -7/Garrison | Garrison Relay disabled 8645 | -7/Garrison | Garrison Relay disabled 8710 | -7/Garrison | Discovered new exit (range 10) 8737 | -7/Garrison | Triggered checkpoint 8835 | -7/Garrison | Lost 4 parts (3n1u) 8944 | -7/Garrison | Garrison Relay disabled 8947 | -7/Garrison | Triggered checkpoint 9191 | -7/Garrison | Triggered checkpoint 9215 | -7/Garrison | Garrison Relay disabled 9287 | -7/Garrison | Discovered new exit (range 12) 9347 | -7/Garrison | Phase Generator disabled 9402 | -7/Garrison | Build established: Scavenger-Skirmisher 10400 | -7/Garrison | Entered Factory 10400 | -7/Factory | Accompanied by 5 allies 10704 | -7/Factory | Discovered new exit (range 6) 10984 | -7/Factory | Fabricated Hcp. Storage Unit? 11113 | -7/Factory | Build established: Gladiator 11141 | -7/Factory | Identified exit to Garrison 11141 | -7/Factory | Entered Garrison 11207 | -7/Garrison | Triggered checkpoint 11296 | -7/Garrison | Garrison Relay disabled 11557 | -7/Garrison | Triggered checkpoint 11618 | -7/Garrison | Lost 5 parts (1p1n3w) 11816 | -7/Garrison | Triggered checkpoint 11931 | -7/Garrison | Lost 3 parts (3n) 11965 | -7/Garrison | Core integrity fell below 50% 12057 | -7/Garrison | Lost 6 parts (1p2n1u2w) 12203 | -7/Garrison | Triggered checkpoint 12289 | -7/Garrison | Triggered checkpoint 12302 | -7/Garrison | Core integrity fell below 20% 12323 | -7/Garrison | Discovered new exit (range 7) 12419 | -7/Garrison | Heavy support dispatched to Factory 12436 | -7/Garrison | Build established: Scavenger-Gladiator 12440 | -7/Garrison | Entered Factory 12568 | -7/Factory | Fabricated Hcp. Storage Unit? 12707 | -7/Factory | Identified exit to Factory 12840 | -7/Factory | First assault squad dispatched 12943 | -7/Factory | Discovered new exit (range 8) 12977 | -7/Factory | Build established: Gladiator 13110 | -7/Factory | Entered another Factory area 13110 | -6/Factory | Evolved 2 slots: Propulsion x1, Utility x1 13418 | -6/Factory | Build established: Scavenger-Gladiator 13436 | -6/Factory | Sucked down chute 13436 | -6/Factory | Entered Waste 13456 | -6/Waste | Spotted C-40 Crusher 13468 | -6/Waste | Spotted C-40 Crusher 13505 | -6/Waste | Crushed by Compactor (1 part destroyed, 2 dropped) 13519 | -6/Waste | Spotted C-40 Crusher 13586 | -6/Waste | Spotted C-40 Crusher 13602 | -6/Waste | Spotted C-40 Crusher 13632 | -6/Waste | Warlord forces began an assault 13634 | -6/Waste | Spotted C-40 Crusher 13653 | -6/Waste | Allies destroyed C-40 Crusher 13653 | -6/Waste | Allies destroyed C-40 Crusher 13653 | -6/Waste | Allies destroyed C-40 Crusher 13656 | -6/Waste | Allies destroyed C-40 Crusher 13659 | -6/Waste | Allies destroyed C-40 Crusher 13662 | -6/Waste | Allies destroyed C-40 Crusher 13678 | -6/Waste | Found Damper Plating 13682 | -6/Waste | Lost 5 allies 13741 | -6/Waste | Discovered new exit (range 10) 13783 | -6/Waste | Entered Factory 13783 | -6/Factory | Accompanied by 14 allies 13806 | -6/Factory | Build established: Gladiator 13857 | -6/Factory | Identified exit to Garrison 13882 | -6/Factory | Entered Garrison 13882 | -6/Garrison | Accompanied by 14 allies 13896 | -6/Garrison | Triggered checkpoint 13924 | -6/Garrison | Learned Factory security intel 13943 | -6/Garrison | Garrison Relay disabled 14111 | -6/Garrison | Phase Generator disabled 14140 | -6/Garrison | Garrison Relay disabled 14143 | -6/Garrison | Garrison Relay disabled 14144 | -6/Garrison | Garrison Relay disabled 14162 | -6/Garrison | Garrison Relay disabled 14232 | -6/Garrison | Triggered checkpoint 14235 | -6/Garrison | Triggered checkpoint 14263 | -6/Garrison | Triggered checkpoint 14265 | -6/Garrison | Triggered checkpoint 14337 | -6/Garrison | Triggered checkpoint 14348 | -6/Garrison | Build established: Scavenger-Gladiator 14365 | -6/Garrison | Garrison Relay disabled 14476 | -6/Garrison | Discovered new exit (range 13) 14722 | -6/Garrison | Triggered checkpoint 14733 | -6/Garrison | Garrison Relay disabled 14854 | -6/Garrison | Discovered new exit (range 13) 15026 | -6/Garrison | P-60 Hacker assimilated allied 51-ISC(g) 15051 | -6/Garrison | Lost 4 allies 15200 | -6/Garrison | Triggered checkpoint 15234 | -6/Garrison | Garrison Relay disabled 15266 | -6/Garrison | Discovered new exit (range 11) 15266 | -6/Garrison | Discovered new exit (range 68) 15266 | -6/Garrison | Discovered new exit (range 93) 15369 | -6/Garrison | Entered Factory 15369 | -6/Factory | Accompanied by 6 allies 15509 | -6/Factory | Fabricated Hcp. Storage Unit? 15613 | -6/Factory | Build established: Gladiator 15617 | -6/Factory | Lost 4 allies 15719 | -6/Factory | First assault squad dispatched 15943 | -6/Factory | Discovered new exit (range 6) 15952 | -6/Factory | Entered Lower Caves 16026 | -6/Lower Caves | Met a Warlord Commander 16027 | -6/Lower Caves | Learned location of Warlord (-5) 16028 | -6/Lower Caves | Warlord Commander delivered Encrypted Comm Array 16034 | -6/Lower Caves | Found Unknown Device 16034 | -6/Lower Caves | Identified Encrypted Comm Array 16056 | -6/Lower Caves | Spotted B-75 Beast 16133 | -6/Lower Caves | Destroyed B-75 Beast 16919 | -6/Lower Caves | Discovered new exit (range 8) 16959 | -6/Lower Caves | Entered another Lower Caves area 16972 | -6/Lower Caves | Attracted the attention of an 0b10 checkpoint 16989 | -6/Lower Caves | Discovered new exit (range 13) 17050 | -6/Lower Caves | Entered Factory 17050 | -5/Factory | Evolved 2 slots: Propulsion x1, Utility x1 17463 | -5/Factory | Joined by Warlord Geek squad 17586 | -5/Factory | Discovered new exit (range 12) 17678 | -5/Factory | Cargo convoy interrupted 17714 | -5/Factory | Destroyed 9 combat bots 17761 | -5/Factory | Found Prototype Device 17761 | -5/Factory | Identified Thermal Barrier 17765 | -5/Factory | Lost 5 parts (3n1u1w) 17772 | -5/Factory | Found Prototype Device 17772 | -5/Factory | Identified Exp. EM Shield 17776 | -5/Factory | Found Exp. EM Shield 17780 | -5/Factory | Found Prototype Launcher 17780 | -5/Factory | Identified Adv. Micro-nuke Launcher 17950 | -5/Factory | First assault squad dispatched 18016 | -5/Factory | Build established: Scavenger-Gladiator 18247 | -5/Factory | System corruption reached 10% 18262 | -5/Factory | Core integrity fell below 50% 18287 | -5/Factory | Lost 11 parts (2p7n1u1w) 18572 | -5/Factory | Identified exit to Upper Caves 18572 | -5/Factory | Identified exit to Extension 18583 | -5/Factory | Identified exit to Garrison 18699 | -5/Factory | Lost 3 parts (3n) 18981 | -5/Factory | Entered Upper Caves 18995 | -5/Upper Caves | Learned Factory stockpile data 19009 | -5/Upper Caves | Lost 3 parts (1n1u1w) 19117 | -5/Upper Caves | Discovered new exit (range 14) 19138 | -5/Upper Caves | Entered another Upper Caves area 19203 | -5/Upper Caves | Identified exit to Warlord 19288 | -5/Upper Caves | Entered an active Warlord outpost 19322 | -5/Upper Caves | Learned 8 Research zone layouts 19500 | -5/Upper Caves | Attracted the attention of an 0b10 outpost 19643 | -5/Upper Caves | Core integrity fell below 20% 19653 | -5/Upper Caves | Lost 3 allies 19657 | -5/Upper Caves | Lost 3 parts (2n1u) 19667 | -5/Upper Caves | P1-3CE showed up to help 19669 | -5/Upper Caves | P1-3CE revealed a hidden path 19920 | -5/Upper Caves | Lost 3 parts (1p1n1u) 20164 | -5/Upper Caves | Entered Warlord 20164 | -5/Warlord | Accompanied by 2 allies 20234 | -5/Warlord | System corruption cleaned by Quarantine Array 20401 | -5/Warlord | System corruption cleaned by Quarantine Array 20817 | -5/Warlord | Found Prototype Hackware 20821 | -5/Warlord | Found Prototype Processor 20821 | -5/Warlord | Identified Spectral Analyzer 20824 | -5/Warlord | Found Prototype Device 20824 | -5/Warlord | Identified Exp. Focal Shield 20842 | -5/Warlord | Found Prototype Device 20842 | -5/Warlord | Identified Exp. Phase Shifter 20849 | -5/Warlord | Found Prototype Reactor 20894 | -5/Warlord | Met Warlord 20919 | -5/Warlord | Warlord's base attacked by MAIN.C 21067 | -5/Warlord | Opened side exit 21090 | -5/Warlord | Discovered new exit (range 10) 21097 | -5/Warlord | Entered Proximity Caves 21099 | -4/Proximity Caves | Spotter reported a threat 21100 | -4/Proximity Caves | Spotter reported a threat 21211 | -4/Proximity Caves | Spotter reported a threat 21311 | -4/Proximity Caves | Spotter reported a threat 21480 | -4/Proximity Caves | Spotter reported a threat 21580 | -4/Proximity Caves | Learned Research garrison access intel 21863 | -4/Proximity Caves | Discovered new exit (range 21) 21882 | -4/Proximity Caves | Destroyed by D-63 Destroyer with Heavy Rocket Launcher Last Messages --------------- 21738_ Found Unknown Device. 21738_ Found Imp. Trap Scanner. 21738_ Found Power Maul. 21738_ Found 57 Matter. 21739_ Acquired 57 matter. 21745_ Searching scrap... 21745_ Found Imp. Force Field. 21745_ Found 67 Matter. 21745_ Found Adv. Drone Bay. 21745_ Found Centrium Wheel. 21745_ Found 42 Matter. 21746_ Acquired 42 matter. 21854_ Flexi-carbon Leg+ destroyed. 21858_ Carbon-fiber Leg destroyed. 21863_ EXIT=FOUND 21863_ Flexi-carbon Leg+ destroyed. 21867_ Dispatcher launches Target Drone into the air. 21867_ Target Drone destroyed. 21877_ Flexi-carbon Leg+ destroyed. Map ----- +----------------------------------------------------+ | ????????????????????????????????????????????? | | ????????????????????????????????????????????? | | ????????????????????????????????????????????? | | ????????????????????????????????????????????? | | ????????????????????????????????????????????? | | ????????????????????????????????????????????? | | ????????????????????????????????????????????? | | ????????????????????????????????????????????? | | ????????????????????????????????????????????? | | ????????????????????????????????????????????? | | ????????????????????????????????????????????? | | ????????????????????????????????????????????? | | ????????????????????????????????????????????? | | ????????????????????????????????????????????? | | ??????????????#############?????????????????? | | ??????????????# # ??????????????????? | | ??????????????# #